fUST/lending_fUST_20251104
["ID","MTS","AMOUNT","RATE_DAILY","PERIOD"]
[393033204,1762236632981,-715.64178833,0.00023316,2]
[393033207,1762236632991,-420.0,0.00023889,2]
[393033208,1762236633000,-899.57626829,0.00023923,2]
[393033210,1762236633009,-151.0,0.00024011,2]
[393033213,1762236633019,-232.02410139,0.00024011,2]
[393033215,1762236633032,-500.0,0.00024023,2]
[393033217,1762236633041,-500.0,0.00024023,2]
[393033219,1762236633052,-437.17081058,0.00024023,2]
[393033221,1762236633062,-500.0,0.00024023,2]
[393033223,1762236633072,-500.0,0.00024023,2]
[393033225,1762236633082,-500.0,0.00024023,2]
[393033227,1762236633092,-500.0,0.00024023,2]
[393033228,1762236633102,-500.0,0.00024023,2]
[393033229,1762236633111,-500.0,0.00024023,2]
[393033230,1762236633121,-500.0,0.00024023,2]
[393033231,1762236633130,-500.0,0.00024023,2]
[393033232,1762236633140,-500.0,0.00024023,2]
[393033233,1762236633150,-500.0,0.00024023,2]
[393033234,1762236633159,-500.0,0.00024023,2]
[393033235,1762236633169,-500.0,0.00024023,2]
[393033236,1762236633179,-500.0,0.00024023,2]
[393033237,1762236633189,-500.0,0.00024023,2]
[393033238,1762236633198,-500.0,0.00024023,2]
[393033239,1762236633207,-503.56751658,0.00024023,2]
[393033240,1762236633217,-500.0,0.00024023,2]
[393033241,1762236633226,-500.0,0.00024023,2]
[393033242,1762236633236,-500.0,0.00024023,2]
[393033243,1762236633245,-154.78312753,0.00024023,2]
[393033244,1762236633255,-500.0,0.00024023,2]
[393033245,1762236633264,-500.0,0.00024023,2]
[393033246,1762236633273,-500.0,0.00024023,2]
[393033247,1762236633289,-500.0,0.00024023,2]
[393033249,1762236633299,-500.0,0.00024023,2]
[393033251,1762236633311,-500.0,0.00024023,2]
[393033253,1762236633320,-500.0,0.00024023,2]
[393033255,1762236633331,-500.0,0.00024023,2]
[393033257,1762236633342,-500.0,0.00024023,2]
[393033259,1762236633352,-500.0,0.00024023,2]
[393033261,1762236633362,-500.0,0.00024023,2]
[393033262,1762236633371,-500.0,0.00024023,2]
[393033263,1762236633381,-500.0,0.00024023,2]
[393033264,1762236633391,-235.0,0.00024023,2]
[393033265,1762236633401,-500.0,0.00024023,2]
[393033266,1762236633411,-432.11890616,0.00024023,2]
[393033267,1762236633420,-500.0,0.00024023,2]
[393033268,1762236633430,-500.0,0.00024023,2]
[393033269,1762236633439,-500.0,0.00024023,2]
[393033270,1762236633448,-500.0,0.00024023,2]
[393033271,1762236633459,-500.0,0.00024023,2]
[393033272,1762236633469,-500.0,0.00024023,2]
[393033273,1762236633478,-500.0,0.00024023,2]
[393033274,1762236633488,-500.0,0.00024023,2]
[393033275,1762236633498,-500.0,0.00024023,2]
[393033276,1762236633507,-500.0,0.00024023,2]
[393033277,1762236633517,-500.0,0.00024023,2]
[393033278,1762236633530,-500.0,0.00024023,2]
[393033279,1762236633539,-500.0,0.00024023,2]
[393033280,1762236633549,-500.0,0.00024023,2]
[393033281,1762236633559,-500.0,0.00024023,2]
[393033282,1762236633569,-500.0,0.00024023,2]
[393033283,1762236633579,-500.0,0.00024023,2]
[393033284,1762236633588,-500.0,0.00024023,2]
[393033285,1762236633597,-500.0,0.00024023,2]
[393033286,1762236633607,-500.0,0.00024023,2]
[393033287,1762236633616,-500.0,0.00024023,2]
[393033288,1762236633625,-500.0,0.00024023,2]
[393033289,1762236633635,-500.0,0.00024023,2]
[393033290,1762236633644,-500.0,0.00024023,2]
[393033291,1762236633655,-500.0,0.00024023,2]
[393033292,1762236633665,-500.0,0.00024023,2]
[393033293,1762236633674,-500.0,0.00024023,2]
[393033294,1762236633685,-500.0,0.00024023,2]
[393033295,1762236633694,-500.0,0.00024023,2]
[393033297,1762236633704,-500.0,0.00024023,2]
[393033298,1762236633714,-500.0,0.00024023,2]
[393033299,1762236633724,-500.0,0.00024023,2]
[393033300,1762236633734,-500.0,0.00024023,2]
[393033301,1762236633744,-500.0,0.00024023,2]
[393033302,1762236633754,-500.0,0.00024023,2]
[393033303,1762236633764,-570.07006388,0.00024023,2]
[393033304,1762236633774,-500.0,0.00024023,2]
[393033305,1762236633785,-500.0,0.00024023,2]
[393033306,1762236633795,-500.0,0.00024023,2]
[393033307,1762236633805,-500.0,0.00024023,2]
[393033308,1762236633815,-500.0,0.00024023,2]
[393033309,1762236633824,-500.0,0.00024023,2]
[393033310,1762236633834,-500.0,0.00024023,2]
[393033311,1762236633844,-500.0,0.00024023,2]
[393033312,1762236633853,-500.0,0.00024023,2]
[393033313,1762236633863,-500.0,0.00024023,2]
[393033314,1762236633872,-499.99999999,0.00024023,2]
[393033315,1762236633882,-500.0,0.00024023,2]
[393033316,1762236633891,-500.0,0.00024023,2]
[393033317,1762236633900,-500.0,0.00024026,2]
[393033318,1762236633910,-506.27789991,0.00024073,2]
[393033319,1762236633920,-500.0,0.00024131,2]
[393033320,1762236633929,-500.0,0.000243,2]
[393033321,1762236633938,-373.11031375,0.00024574,2]
[393033322,1762236633948,-200.0,0.00024658,15]
[393033323,1762236633958,-204.0,0.00024719,2]
[393033324,1762236633968,-500.0,0.0002472,2]
[393033325,1762236633977,-199.92,0.00025859,2]
[393033326,1762236633986,-199.92,0.00025859,2]
[393033327,1762236633995,-179.98,0.00025859,2]
[393033328,1762236634005,-180.0,0.00025959,2]
[393033329,1762236634014,-274.35477304,0.00026101,2]
[393033330,1762236634024,-500.0,0.00026364,2]
[393033331,1762236634037,-160.0,0.000264,2]
[393033332,1762236634046,-227.482555,0.00026676,2]
[393033333,1762236634055,-231.0,0.00026719,2]
[393033334,1762236634065,-223.45330506,0.00026859,4]
[393033335,1762236634074,-260.0,0.00026948,2]
[393033336,1762236634083,-412.0,0.00027078,2]
[393033337,1762236634093,-360.0,0.00027496,2]
[393033338,1762236634103,-250.0,0.00028122,2]
[393033339,1762236634112,-215.282,0.00028122,2]
[393033340,1762236634121,-150.853,0.00028422,2]
[393033341,1762236634131,-199.108,0.00028422,2]
[393033342,1762236634141,-187.147,0.00028422,2]
[393033343,1762236634149,-154.896,0.00028422,2]
[393033344,1762236634159,-2164.0,0.00028422,2]
[393033345,1762236634168,-678.368,0.00028422,2]
[393033346,1762236634177,-990.659,0.00028422,2]
[393033347,1762236634186,-258.0,0.00028719,2]
[393033348,1762236634195,-168.91844944,0.00028962,2]
[393033349,1762236634205,-152.86865261,0.00029131,5]
[393033350,1762236634283,-899.57626829,0.00029697,2]
[393033351,1762236634299,-412.0,0.00030078,2]
[393033352,1762236634308,-160.0,0.0003033,2]
[393033353,1762236634318,-208.4072838,0.00030719,2]
[393033354,1762236634328,-274.35477304,0.00030964,4]
[393033355,1762236634339,-150.0,0.00031122,2]
[393033356,1762236634348,-150.0,0.00031122,2]
[393033357,1762236634358,-150.0,0.00031422,2]
[393033358,1762236634368,-150.0,0.00031422,2]
[393033359,1762236634378,-150.0,0.00031422,2]
[393033360,1762236634387,-2164.0,0.00031422,2]
[393033361,1762236634396,-628.0,0.00031422,2]
[393033362,1762236634406,-985.0,0.00031422,2]
[393033363,1762236634415,-502.1856906,0.00031756,5]
[393033364,1762236634425,-500.0,0.00031999,60]
[393033365,1762236634434,-10000.0,0.00032,2]
[393033366,1762236634443,-2040.0,0.000325,2]
[393033367,1762236634452,-155.718418,0.00032658,10]
[393033368,1762236634462,-1263.60684516,0.00032724,2]
[393033369,1762236634471,-155.718418,0.00032759,2]
[393033370,1762236634481,-1263.60684514,0.00032761,2]
[393033371,1762236634491,-1263.60684514,0.00032799,2]
[393033372,1762236634501,-772.82,0.00032814,10]
[393033373,1762236634510,-644.02,0.00032814,10]
[393033374,1762236634521,-24100.77555728,0.00032824,2]
[393033375,1762236634534,-1263.60684514,0.00032836,2]
[393033376,1762236634545,-501.82660943,0.00032873,5]
[393033377,1762236634555,-503.12894742,0.00032873,5]
[393033378,1762236634565,-504.29821573,0.00032873,5]
[393033379,1762236634574,-500.8632473,0.00032873,5]
[393033380,1762236634584,-299.83204967,0.00032873,5]
[393033381,1762236634595,-1263.60684514,0.00032873,2]
[393033382,1762236634604,-159.76,0.000329,7]
[393033383,1762236634614,-293203.505285,0.00032914,2]
[393033384,1762236634623,-685000.0,0.00032924,2]
[393033385,1762236634632,-407.9006749,0.00032973,5]
[393033386,1762236634642,-502.16668913,0.00032973,5]
[393033387,1762236634651,-501.85812143,0.00032973,5]
[393033388,1762236634661,-500.0,0.00032973,5]
[393033389,1762236634671,-500.0,0.00032973,5]
[393033390,1762236634680,-503.11331673,0.00032973,5]
[393033391,1762236634689,-599.30967986,0.00032973,5]
[393033392,1762236634699,-502.56255375,0.00032973,5]
[393033393,1762236634708,-501.78613142,0.00032973,5]
[393033394,1762236634717,-500.0,0.00032973,5]
[393033395,1762236634727,-83807.93999804,0.0003299,2]
[393033396,1762236634736,-870.33,0.00033,30]
[393033397,1762236634745,-21294.76,0.00033,14]
[393033398,1762236634755,-3002.79,0.00033,14]
[393033399,1762236634764,-238.0,0.0003303,2]
[393033400,1762236634773,-238.0,0.00033037,2]
[393033401,1762236634786,-412.0,0.00033078,2]
[393033402,1762236634795,-265.0,0.00033113,2]
[393033403,1762236634805,-227.482555,0.00033165,2]
[393033404,1762236634814,-209.09468654,0.000332,117]
[393033405,1762236634823,-155.718418,0.00033316,10]
[393033406,1762236634832,-1000.0,0.00033521,5]
[393033407,1762236634841,-1000.0,0.00033521,5]
[393033408,1762236634851,-1000.0,0.00033521,5]
[393033409,1762236634860,-238.0,0.00033658,7]
[393033410,1762236634870,-155.718418,0.00033715,7]
[393033411,1762236634879,-265.0,0.00033886,2]
[393033412,1762236634889,-238.0,0.00033963,2]
[393033413,1762236634899,-155.718418,0.00033973,10]
[393033414,1762236634908,-238.0,0.00033975,2]
[393033415,1762236634918,-238.0,0.00034043,7]
[393033416,1762236634927,-498.17692939,0.00034068,5]
[393033417,1762236634936,-1500.0,0.00034068,5]
[393033418,1762236634946,-1500.0,0.00034068,5]
[393033419,1762236634956,-150.0,0.00034122,2]
[393033420,1762236634965,-500.0,0.00034355,60]
[393033421,1762236634976,-1000.0,0.00034355,2]
[393033422,1762236634985,-1000.0,0.00034355,2]
[393033423,1762236634995,-1000.0,0.00034355,2]
[393033424,1762236635004,-1000.0,0.00034355,2]
[393033425,1762236635014,-1000.0,0.00034355,2]
[393033426,1762236635023,-238.0,0.00034406,7]
[393033427,1762236635035,-150.0,0.00034422,2]
[393033428,1762236635044,-150.0,0.00034422,2]
[393033429,1762236635053,-2164.0,0.00034422,2]
[393033430,1762236635063,-628.0,0.00034422,2]
[393033431,1762236635072,-985.0,0.00034422,2]
[393033432,1762236635082,-517.45,0.00034429,60]
[393033433,1762236635091,-517.45,0.00034529,60]
[393033434,1762236635101,-2000.0,0.00034616,5]
[393033435,1762236635111,-2000.0,0.00034616,5]
[393033436,1762236635120,-517.45,0.00034629,60]
[393033437,1762236635130,-155.718418,0.00034631,10]
[393033438,1762236635139,-517.45,0.00034729,60]
[393033439,1762236635148,-517.45,0.00034829,60]
[393033440,1762236635158,-267.0,0.00034857,2]
[393033441,1762236635167,-238.0,0.00034921,7]
[393033442,1762236635177,-517.45,0.00034929,60]
[393033443,1762236635187,-453.84869689,0.00034979,60]
[393033444,1762236635197,-1000.0,0.00034979,2]
[393033445,1762236635206,-957.94888223,0.00034989,2]
[393033446,1762236635216,-158.0,0.00035,120]
[393033447,1762236635225,-517.45,0.00035029,60]
[393033448,1762236635234,-265.0,0.00035108,7]
[393033449,1762236635244,-238.0,0.00035114,2]
[393033450,1762236635253,-517.45,0.00035129,60]
[393033451,1762236635262,-265.0,0.00035147,2]
[393033452,1762236635272,-2500.0,0.00035164,5]
[393033453,1762236635284,-2500.0,0.00035164,5]
[393033454,1762236635294,-238.0,0.00035199,2]
[393033455,1762236635305,-159.76,0.000352,7]
[393033456,1762236635314,-238.0,0.00035201,2]
[393033457,1762236635324,-517.45,0.00035229,60]
[393033458,1762236635333,-517.45,0.00035329,60]
[393033459,1762236635343,-238.0,0.00035398,2]
[393033460,1762236635353,-3002.79,0.000354,14]
[393033461,1762236635362,-517.45,0.00035429,60]
[393033462,1762236635371,-899.57626829,0.00035472,2]
[393033463,1762236635384,-238.0,0.00035499,2]
[393033464,1762236635393,-238.0,0.00035528,2]
[393033465,1762236635403,-517.45,0.00035529,60]
[393033466,1762236635414,-238.0,0.00035531,2]
[393033467,1762236635423,-517.45,0.00035629,60]
[393033468,1762236635433,-150.0,0.00035673,5]
[393033469,1762236635442,-150.71302369,0.00035673,5]
[393033470,1762236635452,-21294.76,0.000357,14]
[393033471,1762236635461,-453.33152398,0.00035712,5]
[393033472,1762236635472,-3000.0,0.00035712,5]
[393033473,1762236635482,-517.45,0.00035729,60]
[393033474,1762236635492,-274.62912782,0.00035828,7]
[393033475,1762236635564,-517.45,0.00035829,60]
[393033476,1762236635575,-265.0,0.00035834,7]
[393033477,1762236635584,-517.45,0.00035929,60]
[393033478,1762236635594,-517.45,0.00036029,60]
[393033479,1762236635603,-155.718418,0.0003603,2]
[393033480,1762236635612,-265.0,0.00036069,2]
[393033481,1762236635621,-238.0,0.00036084,2]
[393033482,1762236635630,-870.33,0.000361,30]
[393033483,1762236635640,-517.45,0.00036129,60]
[393033484,1762236635649,-238.0,0.00036147,7]
[393033485,1762236635659,-199.0,0.0003618,43]
[393033486,1762236635668,-302.0,0.0003619,2]
[393033487,1762236635678,-302.0,0.00036212,2]
[393033488,1762236635687,-250.0,0.00036221,5]
[393033489,1762236635696,-517.45,0.00036229,60]
[393033490,1762236635706,-3500.0,0.0003626,5]
[393033491,1762236635715,-238.0,0.0003631,2]
[393033492,1762236635724,-517.45,0.00036329,60]
[393033493,1762236635734,-517.45,0.00036429,60]
[393033494,1762236635743,-517.45,0.00036529,60]
[393033495,1762236635752,-4096.23933328,0.00036607,2]
[393033496,1762236635762,-5892.68605528,0.00036607,2]
[393033497,1762236635771,-323.58723845,0.00036607,2]
[393033498,1762236635781,-318.23810473,0.00036607,2]
[393033499,1762236635791,-517.45,0.00036629,60]
[393033500,1762236635800,-517.45,0.00036729,60]
[393033501,1762236635809,-587.47056217,0.00036743,2]
[393033502,1762236635818,-1057.44701191,0.00036743,2]
[393033503,1762236635827,-1879.90579895,0.00036743,2]
[393033504,1762236635836,-350.0,0.00036768,5]
[393033505,1762236635846,-159.76,0.000368,7]
[393033506,1762236635855,-934.30776458,0.00036808,5]
[393033507,1762236635875,-517.45,0.00036829,60]
[393033508,1762236635889,-517.45,0.00036929,60]
[393033509,1762236635898,-517.45,0.00037029,60]
[393033510,1762236635907,-3000.0,0.000371,30]
[393033511,1762236635916,-3002.79,0.000371,14]
[393033512,1762236635925,-3000.0,0.0003711,30]
[393033513,1762236635934,-3000.0,0.0003712,30]
[393033514,1762236635944,-150.0,0.00037122,2]
[393033515,1762236635953,-517.45,0.00037129,60]
[393033516,1762236635962,-5486.058952,0.0003713,30]
[393033517,1762236635971,-157.356386,0.0003713,31]
[393033518,1762236635981,-205.37552124,0.000372,120]
[393033519,1762236635990,-246.59118086,0.000372,120]
[393033520,1762236635999,-200.70772054,0.000372,2]
[393033521,1762236636009,-1000.0,0.00037213,20]
[393033522,1762236636018,-517.45,0.00037229,60]
[393033523,1762236636028,-450.0,0.00037316,5]
[393033524,1762236636037,-155.718418,0.00037323,7]
[393033525,1762236636046,-517.45,0.00037329,60]
[393033526,1762236636055,-21294.76,0.000374,14]
[393033527,1762236636064,-150.0,0.00037422,2]
[393033528,1762236636074,-430.311,0.00037422,2]
[393033529,1762236636083,-628.0,0.00037422,2]
[393033530,1762236636092,-985.0,0.00037422,2]
[393033531,1762236636101,-517.45,0.00037429,60]
[393033532,1762236636111,-517.45,0.00037529,60]
[393033533,1762236636120,-517.45,0.00037629,60]
[393033534,1762236636130,-155.718418,0.00037707,60]
[393033535,1762236636139,-517.45,0.00037729,60]
[393033536,1762236636149,-158.0,0.000378,120]
[393033537,1762236636159,-517.45,0.00037829,60]
[393033538,1762236636169,-550.0,0.00037864,5]
[393033539,1762236636179,-870.33,0.000379,30]
[393033540,1762236636191,-517.45,0.00037929,60]
[393033541,1762236636201,-155.718418,0.00037982,60]
[393033542,1762236636211,-517.45,0.00038029,60]
[393033543,1762236636222,-1900.0,0.00038082,7]
[393033544,1762236636232,-517.45,0.00038129,60]
[393033545,1762236636241,-517.45,0.00038229,60]
[393033546,1762236636251,-155.718418,0.00038258,60]
[393033547,1762236636262,-1000.0,0.00038273,5]
[393033548,1762236636273,-24100.77555728,0.0003828,2]
[393033549,1762236636293,-205.37552124,0.000383,120]
[393033550,1762236636307,-246.59118086,0.000383,120]
[393033551,1762236636320,-517.45,0.00038329,60]
[393033552,1762236636331,-159.76,0.000384,7]
[393033553,1762236636341,-650.0,0.00038412,5]
[393033554,1762236636350,-517.45,0.00038429,120]
[393033555,1762236636360,-155.718418,0.00038515,30]
[393033556,1762236636370,-517.45,0.00038529,120]
[393033557,1762236636380,-605.0,0.00038575,30]
[393033558,1762236636391,-151.0,0.00038575,30]
[393033559,1762236636402,-151.0,0.00038575,30]
[393033560,1762236636411,-151.0,0.00038575,30]
[393033561,1762236636421,-500.0,0.00038575,30]
[393033562,1762236636431,-517.45,0.00038629,120]
[393033563,1762236636441,-605.0,0.0003863,30]
[393033564,1762236636450,-151.0,0.0003863,30]
[393033565,1762236636460,-151.0,0.0003863,30]
[393033566,1762236636472,-500.0,0.0003863,30]
[393033567,1762236636482,-605.0,0.00038685,30]
[393033568,1762236636492,-151.0,0.00038685,30]
[393033569,1762236636501,-201.95904894,0.00038685,30]
[393033570,1762236636510,-500.0,0.00038685,30]
[393033571,1762236636520,-517.45,0.00038729,120]
[393033572,1762236636533,-605.0,0.00038739,30]
[393033573,1762236636542,-155.80874489,0.00038739,30]
[393033574,1762236636551,-500.0,0.00038739,30]
[393033575,1762236636561,-605.0,0.00038794,30]
[393033576,1762236636570,-519.1823183,0.00038794,30]
[393033577,1762236636580,-3002.79,0.000388,14]
[393033578,1762236636589,-517.45,0.00038829,120]
[393033579,1762236636598,-605.0,0.00038849,30]
[393033580,1762236636607,-605.0,0.00038904,30]
[393033581,1762236636616,-1900.0,0.00038904,7]
[393033582,1762236636626,-517.45,0.00038929,120]
[393033583,1762236636637,-605.0,0.00038959,30]
[393033584,1762236636646,-401.90687713,0.0003896,5]
[393033585,1762236636655,-500.0,0.00039,30]
[393033586,1762236636664,-500.0,0.00039,30]
[393033587,1762236636674,-500.0,0.00039,30]
[393033588,1762236636683,-605.0,0.00039013,30]
[393033589,1762236636692,-517.45,0.00039029,120]
[393033590,1762236636701,-605.0,0.00039068,30]
[393033591,1762236636768,-21294.76,0.000391,14]
[393033592,1762236636781,-151.0,0.000391,2]
[393033593,1762236636790,-605.0,0.00039123,30]
[393033594,1762236636799,-517.45,0.00039129,120]
[393033595,1762236636808,-45380.0858279,0.00039159,2]
[393033596,1762236636817,-1024.110245,0.00039159,2]
[393033597,1762236636827,-605.0,0.00039178,30]
[393033598,1762236636836,-155.718418,0.00039182,30]
[393033599,1762236636845,-517.45,0.00039229,120]
[393033600,1762236636855,-605.0,0.00039233,30]
[393033601,1762236636863,-605.0,0.00039287,30]
[393033602,1762236636872,-155.718418,0.000393,2]
[393033603,1762236636882,-517.45,0.00039329,120]
[393033604,1762236636891,-605.0,0.00039342,30]
[393033605,1762236636901,-605.0,0.00039397,30]
[393033606,1762236636910,-517.45,0.00039429,120]
[393033607,1762236636919,-605.0,0.00039452,30]
[393033608,1762236636928,-246.59118086,0.000395,120]
[393033609,1762236636937,-605.0,0.00039507,30]
[393033610,1762236636947,-517.45,0.00039529,120]
[393033611,1762236636959,-605.0,0.00039561,30]
[393033612,1762236636968,-605.0,0.00039616,30]
[393033613,1762236636978,-517.45,0.00039629,120]
[393033614,1762236636987,-227.482555,0.00039654,2]
[393033615,1762236636996,-605.0,0.00039671,30]
[393033616,1762236637005,-870.33,0.000397,30]
[393033617,1762236637015,-605.0,0.00039726,30]
[393033618,1762236637024,-1900.0,0.00039726,7]
[393033619,1762236637035,-517.45,0.00039729,120]
[393033620,1762236637044,-153.0,0.00039767,30]
[393033621,1762236637053,-605.0,0.0003978,30]
[393033622,1762236637063,-153.0,0.00039787,30]
[393033623,1762236637072,-517.45,0.00039829,120]
[393033624,1762236637081,-646.61032527,0.00039832,2]
[393033625,1762236637090,-627.75705265,0.00039835,30]
[393033626,1762236637100,-155.718418,0.0003985,30]
[393033627,1762236637110,-517.45,0.00039929,120]
[393033628,1762236637119,-160.0,0.0003995,5]
[393033629,1762236637128,-200.0,0.00039963,20]
[393033630,1762236637137,-10910.74665609,0.0004,120]
[393033631,1762236637146,-1340.69144327,0.0004,120]
[393033632,1762236637156,-160.0,0.0004,14]
[393033633,1762236637165,-170.29,0.0004,60]
[393033634,1762236637174,-440.20435045,0.0004,120]
[393033635,1762236637183,-159.76,0.0004,7]
[393033636,1762236637193,-517.59419655,0.00040029,120]
[393033637,1762236637202,-806.87,0.00040528,120]
[393033638,1762236637211,-1900.0,0.00040548,7]
[393033639,1762236637220,-158.0,0.000406,120]
[393033640,1762236637232,-806.87,0.00040628,120]
[393033641,1762236637241,-246.59118086,0.000407,120]
[393033642,1762236637250,-806.87,0.00040728,120]
[393033643,1762236637259,-806.87,0.00040828,120]
[393033644,1762236637268,-806.87,0.00040928,120]
[393033645,1762236637279,-155.718418,0.0004093,7]
[393033646,1762236637293,-277.90266566,0.00040999,120]
[393033647,1762236637307,-1000.0,0.00041,120]
[393033648,1762236637317,-2000.0,0.00041,120]
[393033649,1762236637327,-12527.15,0.00041006,14]
[393033650,1762236637341,-806.87,0.00041028,120]
[393033651,1762236637354,-540.91,0.00041096,120]
[393033652,1762236637364,-347.64,0.00041096,120]
[393033653,1762236637373,-221.48,0.000411,120]
[393033654,1762236637383,-182.65,0.000411,120]
[393033655,1762236637392,-806.87,0.00041128,120]
[393033656,1762236637401,-806.87,0.00041228,120]
[393033657,1762236637411,-899.57626829,0.00041246,28]
[393033658,1762236637420,-806.87,0.00041328,120]
[393033659,1762236637429,-1900.0,0.0004137,60]
[393033660,1762236637439,-300.0,0.000414,120]
[393033661,1762236637448,-806.87,0.00041428,120]
[393033662,1762236637457,-10396.4,0.0004143,2]
[393033663,1762236637467,-806.87,0.00041528,120]
[393033664,1762236637476,-4179.05,0.00041618,14]
[393033665,1762236637486,-3179.05,0.00041618,14]
[393033666,1762236637495,-806.87,0.00041628,120]
[393033667,1762236637505,-806.87,0.00041728,120]
[393033668,1762236637515,-10004.0157832,0.000418,120]
[393033669,1762236637524,-870.33,0.000418,30]
[393033670,1762236637536,-159.76,0.000418,14]
[393033671,1762236637545,-806.87,0.00041828,120]
[393033672,1762236637555,-246.59118086,0.000419,120]
[393033673,1762236637565,-1900.0,0.00041918,60]
[393033674,1762236637574,-806.87,0.00041928,120]
[393033675,1762236637583,-806.87,0.00042028,120]
[393033676,1762236637593,-806.87,0.00042128,120]
[393033677,1762236637603,-806.87,0.00042228,120]
[393033678,1762236637613,-10794.25,0.00042228,14]
[393033679,1762236637623,-890.87,0.00042228,14]
[393033680,1762236637632,-1042.08236381,0.00042232,4]
[393033681,1762236637641,-806.87,0.00042328,120]
[393033682,1762236637650,-2007.18288578,0.00042382,10]
[393033683,1762236637659,-806.87,0.00042428,120]
[393033684,1762236637669,-200.0,0.000425,120]
[393033685,1762236637679,-1006.4239342,0.000425,2]
[393033686,1762236637688,-31829.329,0.000425,120]
[393033687,1762236637698,-806.87,0.00042528,120]
[393033688,1762236637707,-806.87,0.00042628,120]
[393033689,1762236637716,-803.201606,0.00042655,30]
[393033690,1762236637727,-807.32216528,0.00042728,120]
[393033691,1762236637746,-126766.61,0.00042882,14]
[393033692,1762236637756,-754.72,0.00042887,120]
[393033693,1762236637765,-221.291342,0.00042896,30]
[393033694,1762236637774,-163.4406616,0.00042896,30]
[393033695,1762236637786,-194.5449539,0.00042929,30]
[393033696,1762236637795,-163.8562911,0.00042929,30]
[393033698,1762236637861,-317.3005847,0.00042929,30]
[393033699,1762236637871,-672.7768708,0.00042929,30]
[393033700,1762236637880,-163.8562911,0.00042929,30]
[393033701,1762236637889,-299.6635978,0.00042929,30]
[393033702,1762236637899,-591.8931998,0.00042929,30]
[393033703,1762236637909,-163.8562911,0.00042929,30]
[393033704,1762236637919,-299.6635978,0.00042929,30]
[393033706,1762236637928,-591.8931998,0.00042929,30]
[393033707,1762236637937,-299.6635978,0.00042929,30]
[393033708,1762236637946,-163.8562911,0.00042929,30]
[393033710,1762236637955,-591.8931998,0.00042929,30]
[393033711,1762236637964,-591.8931998,0.00042929,30]
[393033712,1762236637973,-754.72,0.00042987,120]
[393033713,1762236637982,-200.0,0.00043,120]
[393033714,1762236637991,-1000.0,0.00043,120]
[393033715,1762236638001,-2000.0,0.00043,120]
[393033716,1762236638011,-6000.0,0.00043,30]
[393033717,1762236638020,-1900.0,0.00043014,60]
[393033718,1762236638032,-754.72,0.00043087,120]
[393033719,1762236638042,-9510.46579861,0.0004311,2]
[393033721,1762236638052,-754.72,0.00043187,120]
[393033723,1762236638062,-280256.38880129,0.0004321,120]
[393033725,1762236638072,-151.0,0.0004321,2]
[393033727,1762236638081,-463.1954,0.0004322,30]
[393033729,1762236638090,-754.72,0.00043287,120]
[393033731,1762236638100,-754.72,0.00043387,120]
[393033733,1762236638109,-158.0,0.000434,120]